bitfinex-derivatives/quotes_BTCF0:USTF0_20250904
["timestamp","ask_amount","ask_price","bid_price","bid_amount"]
[1756991836189,0.002,110920.0,110910.0,2.32782613]
[1756991836990,0.002,110920.0,110910.0,1.49414613]
[1756991837199,0.002,110920.0,110910.0,2.32734613]
[1756991838279,0.0001,110930.0,110920.0,0.04326]
[1756991838483,0.02116442,110930.0,110920.0,1.06714]
[1756991838695,1.62973261,110940.0,110930.0,0.1152]
[1756991838885,1.62963261,110940.0,110930.0,1.35998]
[1756991839086,1.87963261,110940.0,110930.0,0.52714]
[1756991839389,1.62963261,110940.0,110930.0,0.94796]
[1756991839583,1.86963261,110940.0,110930.0,0.94796]
[1756991839984,1.86963261,110940.0,110930.0,0.94788]
[1756991840490,1.65068896,110940.0,110930.0,0.94788]
[1756991840685,1.89068896,110940.0,110930.0,0.94788]
[1756991840886,1.65068896,110940.0,110930.0,0.94788]
[1756991841687,1.94468896,110940.0,110930.0,0.94788]
[1756991841988,1.65768896,110940.0,110930.0,0.94788]
[1756991842186,1.94768896,110940.0,110930.0,0.94788]
[1756991843492,1.94768896,110940.0,110930.0,1.27959731]
[1756991843792,1.65768896,110940.0,110930.0,1.27959731]
[1756991843994,1.92768896,110940.0,110930.0,1.27959731]
[1756991844188,1.65768896,110940.0,110930.0,1.27959731]
[1756991845794,1.65768896,110940.0,110930.0,1.27935731]
[1756991846187,1.65768896,110940.0,110930.0,0.94764]
[1756991846392,1.92768896,110940.0,110930.0,1.27935731]
[1756991846792,1.65768896,110940.0,110930.0,1.27935731]
[1756991846995,1.90768896,110940.0,110930.0,1.27935731]
[1756991847194,1.65768896,110940.0,110930.0,1.27935731]
[1756991847393,1.93768896,110940.0,110930.0,1.27935731]
[1756991847598,1.65768896,110940.0,110930.0,1.27935731]
[1756991847798,1.90768896,110940.0,110930.0,1.27935731]
[1756991848893,1.65768896,110940.0,110930.0,1.27931731]
[1756991849295,1.94768896,110940.0,110930.0,1.27931731]
[1756991849896,1.65768896,110940.0,110930.0,1.27931731]
[1756991850097,1.95768896,110940.0,110930.0,1.27931731]
[1756991850298,2.53940627,110940.0,110930.0,0.90434]
[1756991850496,2.57111627,110940.0,110930.0,0.90434]
[1756991853307,2.57111627,110940.0,110930.0,0.07194]
[1756991853503,2.57111627,110940.0,110930.0,0.9043]
[1756991853700,2.57111627,110940.0,110920.0,0.04326]
[1756991853895,0.37309731,110930.0,110920.0,0.07194]
[1756991854103,0.75778499,110930.0,110920.0,0.9043]
[1756991854600,0.75778499,110930.0,110920.0,0.07194]
[1756991854898,0.75778499,110930.0,110920.0,0.9043]
[1756991855294,0.76078499,110930.0,110920.0,0.07194]
[1756991856100,0.76378499,110930.0,110920.0,0.07194]
[1756991859505,0.76378499,110930.0,110910.0,1.54580581]
[1756991859506,0.76378499,110930.0,110910.0,1.2140885]
[1756991859707,0.76398499,110930.0,110920.0,0.07402]
[1756991859906,1.59610499,110930.0,110920.0,0.07402]
[1756991860406,1.59610499,110930.0,110910.0,1.28056581]
[1756991860612,1.59630499,110930.0,110920.0,0.07402]
[1756991860817,0.76378499,110930.0,110920.0,0.07402]
[1756991861007,1.59610499,110930.0,110920.0,0.07402]
[1756991861212,1.59510499,110930.0,110920.0,0.07402]
[1756991861410,0.11874,110920.0,110910.0,0.1463885]
[1756991861616,0.78045731,110920.0,110910.0,0.1463885]
[1756991862413,1.28106,110920.0,110910.0,0.1463885]
[1756991863214,1.61377731,110920.0,110910.0,0.1463885]
[1756991863515,0.11576,110920.0,110910.0,0.51869581]
[1756991863706,0.20576,110920.0,110910.0,0.51869581]
[1756991864315,0.07576,110920.0,110910.0,0.51869581]
[1756991864511,0.22776,110920.0,110910.0,0.51869581]
[1756991865016,0.20776,110920.0,110910.0,0.51869581]
[1756991865315,0.46174,110920.0,110910.0,0.1869785]
[1756991865521,0.79345731,110920.0,110910.0,0.1463885]
[1756991865916,1.62577731,110920.0,110910.0,0.1463885]
[1756991866118,1.29406,110920.0,110910.0,0.1869785]
[1756991866321,1.25008,110920.0,110910.0,0.1869785]
[1756991866622,0.41776,110920.0,110910.0,0.1869785]
[1756991866826,0.41776,110920.0,110910.0,0.51869581]
[1756991867718,0.41776,110920.0,110910.0,0.1869785]
[1756991869226,0.41776,110920.0,110910.0,0.51869581]
[1756991870524,0.46174,110920.0,110910.0,0.51869581]
[1756991870720,0.46174,110920.0,110910.0,0.1869785]
[1756991871120,0.41776,110920.0,110910.0,0.1869785]
[1756991871321,0.31776,110920.0,110910.0,0.51869581]
[1756991871825,0.07776,110920.0,110910.0,0.51869581]
[1756991872026,0.36776,110920.0,110910.0,0.51869581]
[1756991874913,0.003,110920.0,110910.0,1.10041312]
[1756991875129,0.003,110920.0,110910.0,1.68041312]
[1756991877733,0.003,110920.0,110910.0,1.94561312]
[1756991878027,0.07496,110930.0,110920.0,0.18373]
[1756991878230,0.35476,110930.0,110920.0,1.34768731]
[1756991878629,0.07476,110930.0,110920.0,1.34768731]
[1756991879318,0.07776,110930.0,110920.0,1.34768731]
[1756991879524,0.08076,110930.0,110920.0,1.34768731]
[1756991879824,0.35076,110930.0,110920.0,1.34768731]
[1756991880130,0.08076,110930.0,110920.0,1.34768731]
[1756991880531,0.006,110930.0,110920.0,1.34768731]
[1756991881124,0.296,110930.0,110920.0,1.34768731]
[1756991881330,0.37076,110930.0,110920.0,0.51544731]
[1756991881622,0.08076,110930.0,110920.0,1.34764731]
[1756991881825,0.34076,110930.0,110920.0,1.34764731]
[1756991882430,0.42076,110930.0,110920.0,0.18373]
[1756991882632,0.42076,110930.0,110920.0,0.51544731]
[1756991882832,0.08076,110930.0,110920.0,1.01593]
[1756991883032,0.27076,110930.0,110920.0,1.01593]
[1756991883222,0.27076,110930.0,110920.0,0.18373]
[1756991883423,0.64640731,110930.0,110920.0,0.14314]
[1756991885539,0.64640731,110930.0,110920.0,0.07402]
[1756991885841,0.22028,110930.0,110920.0,0.11461]
[1756991886038,0.55199731,110930.0,110920.0,0.11461]
[1756991890336,0.22028,110930.0,110920.0,0.11461]
[1756991890740,1.05236,110930.0,110920.0,0.11461]
[1756991890945,1.40493807,110930.0,110920.0,0.07402]
[1756991891246,1.65493807,110930.0,110910.0,0.1129585]
[1756991891437,0.3318902,110920.0,110910.0,0.5149487]
[1756991891638,0.7210302,110920.0,110910.0,0.5149487]
[1756991892544,1.0529204,110920.0,110910.0,0.1424685]
[1756991892746,1.0928004,110920.0,110910.0,0.1424685]
[1756991892946,0.7609102,110920.0,110910.0,0.4753587]
[1756991893447,0.7609102,110920.0,110910.0,0.5157887]
[1756991893651,0.7210302,110920.0,110910.0,0.5157887]
[1756991893850,1.5530702,110920.0,110910.0,0.5157887]
[1756991894042,1.5530702,110920.0,110910.0,0.1434685]
[1756991894353,1.5530702,110920.0,110910.0,0.4753587]
[1756991895048,0.7210302,110920.0,110910.0,0.4753587]
[1756991895248,1.5530702,110920.0,110910.0,0.4753587]
[1756991896945,1.8849604,110920.0,110910.0,0.4753587]
[1756991897751,1.8849604,110920.0,110910.0,0.1434685]
[1756991897950,1.8849604,110920.0,110910.0,0.4753587]
[1756991898255,1.8849604,110920.0,110910.0,0.1434685]
[1756991898442,1.8849204,110920.0,110910.0,0.1434685]
[1756991898643,1.5530302,110920.0,110910.0,0.1434685]
[1756991899337,1.8849204,110920.0,110910.0,0.1434685]
[1756991900052,1.8849204,110920.0,110910.0,0.0733685]
[1756991900249,1.8849204,110920.0,110910.0,0.1434685]
[1756991901549,0.7210302,110920.0,110910.0,0.4753587]
[1756991901746,1.5529902,110920.0,110910.0,0.5157887]
[1756991902143,1.2211,110920.0,110910.0,0.5157887]
[1756991902343,0.7210302,110920.0,110910.0,0.5157887]
[1756991902540,1.5529902,110920.0,110910.0,0.5157887]
[1756991902850,0.06914,110920.0,110910.0,0.7657887]
[1756991903053,1.1911,110920.0,110910.0,0.7657887]
[1756991903347,0.09020076,110930.0,110920.0,0.04043]
[1756991903541,0.09000076,110930.0,110920.0,0.7743104]
[1756991903742,0.42000076,110930.0,110920.0,0.7743104]
[1756991904753,0.42100076,110930.0,110920.0,0.7743104]
[1756991904951,0.42200076,110930.0,110920.0,0.7743104]
[1756991906356,0.75389096,110930.0,110920.0,0.4424202]
[1756991908160,1.58581096,110930.0,110920.0,0.4424202]
[1756991909161,1.25392076,110930.0,110920.0,0.4424202]
[1756991910660,1.25292076,110930.0,110920.0,0.11153]
[1756991910857,1.58481096,110930.0,110920.0,0.4434202]
[1756991911362,1.58381096,110930.0,110920.0,0.4434202]
[1756991914261,0.75189096,110930.0,110920.0,0.4434202]
[1756991914462,1.58369096,110930.0,110920.0,0.4434202]
[1756991915659,1.25180076,110930.0,110920.0,0.4434202]
[1756991915863,1.58369096,110930.0,110920.0,0.4434202]
[1756991916462,1.58365096,110930.0,110920.0,0.4434202]
[1756991916763,1.25176076,110930.0,110920.0,0.7753104]
[1756991917261,1.58365096,110930.0,110920.0,0.7753104]
[1756991918263,1.58365096,110930.0,110920.0,0.4434202]
[1756991918459,1.58365096,110930.0,110920.0,0.11153]
[1756991918761,0.42000076,110930.0,110920.0,0.7753104]
[1756991918963,1.25176076,110930.0,110920.0,0.7753104]
[1756991919263,0.42000076,110930.0,110920.0,0.7753104]
[1756991919465,1.25172076,110930.0,110920.0,0.7753104]
[1756991921665,0.42000076,110930.0,110920.0,0.7753104]
[1756991921867,1.25168076,110930.0,110920.0,0.7753104]
[1756991922768,0.42000076,110930.0,110920.0,0.7753104]
[1756991923063,1.25168076,110930.0,110920.0,0.7753104]
[1756991925665,1.25168076,110930.0,110920.0,0.11153]
[1756991925872,1.58357096,110930.0,110920.0,0.7753104]
[1756991926068,1.58357096,110930.0,110920.0,0.4434202]
[1756991928473,1.2311,110930.0,110920.0,0.7753104]
[1756991928677,0.06942,110930.0,110920.0,0.7753104]
[1756991928869,1.28303635,110940.0,110930.0,0.1073]
[1756991929071,0.02105635,110940.0,110930.0,1.2210804]
[1756991929366,0.80576178,110950.0,110940.0,0.1073]
[1756991929667,0.06942,110950.0,110940.0,1.4918804]
[1756991929867,0.06,110950.0,110940.0,1.7418804]
[1756991930070,0.06962,110960.0,110950.0,0.1073]
[1756991930272,0.34942,110960.0,110950.0,0.4391902]
[1756991932368,0.39462641,110960.0,110950.0,0.4391902]
[1756991932567,0.39462641,110960.0,110950.0,0.4401902]
[1756991932970,0.39462641,110960.0,110950.0,0.1083]
[1756991933175,0.39462641,110960.0,110950.0,0.4401902]
[1756991933473,0.39462641,110960.0,110950.0,0.1083]
[1756991933667,1.08731661,110960.0,110950.0,0.1083]
[1756991933872,1.08731661,110960.0,110950.0,0.4401902]
[1756991935174,0.72651661,110960.0,110950.0,0.4401902]
[1756991935370,0.39462641,110960.0,110950.0,0.4401902]
[1756991935575,0.72651661,110960.0,110950.0,0.4401902]
[1756991935772,0.39462641,110960.0,110950.0,0.4401902]
[1756991937870,0.75542641,110960.0,110950.0,0.4401902]
[1756991938577,0.39462641,110960.0,110950.0,0.4401902]
[1756991940578,0.75542641,110960.0,110950.0,0.1083]
[1756991940871,0.75542641,110960.0,110950.0,0.4401902]
[1756991941278,1.08731661,110960.0,110950.0,0.4401902]
[1756991941473,1.08731661,110960.0,110950.0,0.1083]
[1756991941679,1.08731661,110960.0,110950.0,0.4401902]
[1756991949281,1.08731661,110960.0,110950.0,0.1083]
[1756991949481,1.08731661,110960.0,110950.0,0.4401902]
[1756991953493,0.75542641,110960.0,110950.0,0.1083]
[1756991953694,1.58678641,110960.0,110950.0,0.1083]
[1756991953993,1.58678641,110960.0,110950.0,0.43989988]
[1756991956996,1.58678641,110960.0,110950.0,0.1083]
[1756991957299,1.58678641,110960.0,110950.0,0.43989988]
[1756991964200,0.75542641,110960.0,110950.0,0.43989988]
[1756991964401,1.58670641,110960.0,110950.0,0.43989988]
[1756991964791,0.75542641,110960.0,110950.0,0.43989988]
[1756991964996,1.58670641,110960.0,110950.0,0.43989988]
[1756991965397,0.39462641,110960.0,110950.0,0.43989988]
[1756991966803,1.22590641,110960.0,110950.0,0.43989988]
[1756991968106,0.39462641,110960.0,110950.0,0.43989988]
[1756991968403,1.22590641,110960.0,110950.0,0.43989988]
[1756991968595,1.22586641,110960.0,110950.0,0.43989988]
[1756991969194,0.39462641,110960.0,110950.0,0.1083]
[1756991969395,1.22586641,110960.0,110950.0,0.1083]
[1756991969703,1.58666641,110960.0,110950.0,0.43989988]
[1756991970299,1.58666641,110960.0,110940.0,0.40222]
[1756991970300,0.03171,110930.0,110920.0,0.07058]
[1756991970500,0.04257,110920.0,110910.0,0.0723685]
[1756991970707,1.14496988,110920.0,110910.0,0.07058]
[1756991971001,0.81337,110920.0,110910.0,0.07058]
[1756991971403,1.14496988,110920.0,110910.0,0.07058]
[1756991972707,1.14496988,110920.0,110910.0,0.07158]
[1756991972906,0.81037,110920.0,110910.0,0.07158]
[1756991973203,1.14196988,110920.0,110910.0,0.07158]
[1756991974205,0.81037,110920.0,110910.0,0.07158]
[1756991974404,1.14196988,110920.0,110910.0,0.07158]
[1756991974605,1.14196988,110920.0,110910.0,0.07372904]
[1756991974801,0.04257,110910.0,110890.0,0.03449255]
[1756991974998,1.99708988,110900.0,110890.0,0.07058]
[1756991975195,2.34708988,110900.0,110890.0,0.07058]
[1756991976112,2.34708988,110900.0,110890.0,0.07258]
[1756991976499,1.51576988,110900.0,110890.0,0.07258]
[1756991976808,1.62296,110900.0,110890.0,0.11029]
[1756991977009,1.90296,110900.0,110890.0,0.11029]
[1756991977196,1.94915989,110900.0,110890.0,0.11029]
[1756991977596,2.32432977,110900.0,110890.0,0.07058]
[1756991977810,1.31296977,110900.0,110890.0,0.07058]
[1756991978003,2.38436977,110900.0,110890.0,0.1418653]
[1756991979502,2.38436977,110900.0,110890.0,0.07058]
[1756991979704,0.10531,110890.0,110880.0,0.1085]
[1756991979909,1.14770988,110890.0,110880.0,0.1085]
[1756991980307,1.54675,110890.0,110880.0,0.1085]
[1756991982311,1.58751,110890.0,110880.0,0.1105]
[1756991983209,1.58751,110890.0,110880.0,0.1085]
[1756991983711,1.58751,110890.0,110880.0,0.17922191]
[1756991984814,1.91918988,110890.0,110880.0,0.13951191]
[1756991990424,1.58759,110890.0,110880.0,0.13951191]
[1756991990614,1.91918988,110890.0,110880.0,0.13951191]
[1756991991619,1.58759,110890.0,110880.0,0.13951191]
[1756991991820,1.91918988,110890.0,110880.0,0.13951191]
[1756991994019,2.52205996,110890.0,110880.0,0.0001]
[1756991995025,0.10531,110860.0,110850.0,0.1084]
[1756991995226,1.63767,110860.0,110850.0,0.3284]
[1756991996724,1.63767,110860.0,110850.0,0.40194761]
[1756991997125,1.63767,110860.0,110850.0,0.40494761]
[1756991997624,1.63767,110860.0,110850.0,0.40594761]
[1756991998024,1.88538988,110860.0,110850.0,0.40594761]
[1756992003327,1.55379,110860.0,110850.0,0.40594761]
[1756992003717,1.88538988,110860.0,110850.0,0.40594761]
[1756992004330,1.91378126,110860.0,110850.0,0.40594761]
[1756992005422,1.91378126,110860.0,110850.0,0.40494761]
[1756992005618,2.1848435,110860.0,110850.0,0.003]
[1756992006024,2.1848435,110860.0,110830.0,0.87306]
[1756992006325,0.3608,110840.0,110830.0,1.06175]
[1756992007030,0.6708,110840.0,110830.0,1.06175]
[1756992007222,1.03239988,110840.0,110830.0,1.06175]
[1756992007623,1.97325472,110840.0,110830.0,0.23011]
[1756992009132,2.00159814,110840.0,110830.0,0.23011]
[1756992009929,2.00159814,110840.0,110830.0,0.30237918]
[1756992010739,1.95559814,110840.0,110830.0,0.30237918]
[1756992011233,1.62403826,110840.0,110830.0,0.30237918]
[1756992014035,0.79235826,110840.0,110830.0,0.30237918]
[1756992014335,1.95567814,110840.0,110830.0,0.30237918]
[1756992015135,1.95567814,110840.0,110830.0,0.18869]
[1756992015440,0.08992,110830.0,110820.0,0.0638]
[1756992015632,1.17282853,110830.0,110820.0,0.0637]
[1756992016032,1.17282853,110830.0,110820.0,0.10376]
[1756992016430,1.98420853,110830.0,110820.0,0.10376]
[1756992017042,1.98420853,110830.0,110820.0,0.10576]
[1756992018454,1.98418145,110830.0,110820.0,0.10576]
[1756992019255,2.00411145,110830.0,110820.0,0.0657]
[1756992019448,2.00411145,110830.0,110820.0,0.13679949]
[1756992020657,1.17235145,110830.0,110820.0,0.13679949]
[1756992020857,1.98418145,110830.0,110820.0,0.17685949]
[1756992022455,2.25411145,110830.0,110820.0,0.002]
[1756992022652,2.58657401,110830.0,110820.0,0.002]
[1756992023157,2.25411145,110830.0,110820.0,0.002]
[1756992023557,2.58657401,110830.0,110820.0,0.002]
[1756992023956,2.25411145,110830.0,110820.0,0.002]
[1756992024155,1.92164889,110830.0,110820.0,0.002]
[1756992024352,2.25415145,110830.0,110820.0,0.002]
[1756992025259,2.25515145,110830.0,110820.0,0.002]
[1756992025656,1.92268889,110830.0,110820.0,0.0657]
[1756992025860,2.25515145,110830.0,110820.0,0.0657]
[1756992026767,2.25615145,110830.0,110820.0,0.0637]
[1756992027163,2.25615145,110830.0,110810.0,0.11402599]
[1756992027366,0.76280256,110820.0,110810.0,0.20772599]
[1756992027568,1.10280256,110820.0,110810.0,0.20762599]
[1756992029458,1.43526512,110820.0,110810.0,0.20762599]
[1756992029954,1.10280256,110820.0,110810.0,0.20762599]
[1756992031069,0.77034,110820.0,110810.0,0.20762599]
[1756992031364,1.43526512,110820.0,110810.0,0.20762599]
[1756992035871,1.45394512,110820.0,110810.0,0.16620599]
[1756992036973,1.43526512,110820.0,110810.0,0.20626599]
[1756992038074,1.10280256,110820.0,110810.0,0.20626599]
[1756992038263,2.26706512,110820.0,110810.0,0.20626599]
[1756992040071,1.60214,110820.0,110810.0,0.20626599]
[1756992040262,2.26706512,110820.0,110810.0,0.20626599]
[1756992040669,1.43526512,110820.0,110810.0,0.20626599]
[1756992041169,0.77034,110820.0,110810.0,0.20626599]
[1756992041470,1.43526512,110820.0,110810.0,0.20626599]
[1756992042656,1.45274512,110820.0,110810.0,0.16620599]
[1756992043064,0.78782,110820.0,110810.0,0.13620599]
[1756992043268,1.45274512,110820.0,110810.0,0.13620599]
[1756992044067,1.70274512,110820.0,110800.0,0.04152]
[1756992044264,1.58995256,110810.0,110800.0,0.15892]
[1756992044469,1.93995256,110810.0,110800.0,0.15882]
[1756992045270,0.42573,110810.0,110800.0,0.15882]
[1756992045571,1.58995256,110810.0,110800.0,0.16082]
[1756992045777,1.87995256,110810.0,110800.0,0.16082]
[1756992046269,1.87995256,110810.0,110800.0,0.15882]
[1756992046468,1.87995256,110810.0,110800.0,0.16082]
[1756992046768,0.68739256,110810.0,110800.0,0.16082]
[1756992047070,1.51915256,110810.0,110800.0,0.16082]
[1756992047664,1.87995256,110810.0,110800.0,0.16082]
[1756992047872,1.04819256,110810.0,110800.0,0.56462576]
[1756992048269,1.54749,110810.0,110800.0,0.56462576]
[1756992048960,1.87995256,110810.0,110800.0,0.2321632]
[1756992049267,1.87995256,110810.0,110800.0,0.56462576]
[1756992049461,1.04819256,110810.0,110800.0,0.56462576]
[1756992049768,1.04819256,110810.0,110800.0,0.2321632]
[1756992049974,1.87991256,110810.0,110800.0,0.56462576]
[1756992050472,1.04819256,110810.0,110800.0,0.2321632]
[1756992050673,1.87991256,110810.0,110800.0,0.56462576]
[1756992050871,1.92127274,110810.0,110800.0,0.1233432]
[1756992051066,2.5037353,110810.0,110800.0,0.002]
[1756992053876,2.5037753,110810.0,110800.0,0.002]
[1756992054976,1.6720153,110810.0,110800.0,0.002]
[1756992055170,2.5037753,110810.0,110800.0,0.002]
[1756992056377,1.6720153,110810.0,110800.0,0.002]
[1756992056579,2.5037753,110810.0,110800.0,0.002]
[1756992058779,1.6720153,110810.0,110800.0,0.002]
[1756992058974,2.5038153,110810.0,110800.0,0.002]
[1756992059277,2.5038153,110810.0,110800.0,0.0694]
[1756992059278,2.2538153,110810.0,110800.0,0.0694]
[1756992060576,1.92135274,110810.0,110800.0,0.0694]
[1756992060771,1.92135274,110810.0,110800.0,0.002]
[1756992061172,1.08955274,110810.0,110800.0,0.002]
[1756992061374,1.92131274,110810.0,110800.0,0.0694]
[1756992062278,1.90092274,110810.0,110800.0,0.10768]
[1756992062474,1.92135274,110810.0,110800.0,0.0694]
[1756992062665,2.2538153,110810.0,110800.0,0.002]
[1756992063069,1.4220153,110810.0,110800.0,0.002]
[1756992063272,2.2538153,110810.0,110800.0,0.002]
[1756992063472,1.06912274,110810.0,110800.0,0.10768]
[1756992063672,1.90092274,110810.0,110800.0,0.10768]
[1756992063874,1.06912274,110810.0,110800.0,0.10768]
[1756992064373,1.90092274,110810.0,110800.0,0.10768]
[1756992064574,1.06912274,110810.0,110800.0,0.10768]
[1756992064775,1.90092274,110810.0,110800.0,0.69014256]
[1756992065282,1.90092274,110810.0,110800.0,0.35768]
[1756992068083,1.90092274,110810.0,110800.0,0.69014256]
[1756992068284,1.90092274,110810.0,110800.0,0.35768]
[1756992069188,1.90092274,110810.0,110800.0,0.69014256]
[1756992070482,1.06912274,110810.0,110800.0,0.69014256]
[1756992070674,1.90088274,110810.0,110800.0,0.69014256]
[1756992070880,0.73666018,110810.0,110800.0,1.02260512]
[1756992071188,1.56842018,110810.0,110800.0,0.69014256]
[1756992071388,1.37842018,110810.0,110800.0,0.69014256]
[1756992071588,1.58842018,110810.0,110800.0,0.35768]
[1756992071888,1.92088274,110810.0,110800.0,0.69014256]
[1756992072389,0.77912274,110810.0,110800.0,0.69014256]
[1756992072581,1.92088274,110810.0,110800.0,0.35768]
[1756992072987,1.92088274,110810.0,110800.0,0.0694]
[1756992073185,2.2737753,110810.0,110800.0,0.002]
[1756992073387,1.94131274,110810.0,110800.0,0.002]
[1756992073791,1.94131274,110810.0,110800.0,0.06879]
[1756992073986,1.92088274,110810.0,110800.0,0.10931]
[1756992074186,1.08912274,110810.0,110800.0,0.10931]
[1756992074399,1.92088274,110810.0,110800.0,0.10931]
[1756992074889,1.92084274,110810.0,110800.0,0.10931]
[1756992075384,1.94127274,110810.0,110800.0,0.06879]
[1756992075586,1.94138215,110810.0,110800.0,0.06879]
[1756992076290,1.94138215,110810.0,110800.0,0.002]
[1756992076788,1.94138215,110810.0,110800.0,0.06879]
[1756992077286,1.94138215,110810.0,110800.0,0.002]
[1756992077788,1.10966215,110810.0,110800.0,0.002]
[1756992077989,1.94138215,110810.0,110800.0,0.002]
[1756992079095,1.10966215,110810.0,110800.0,0.002]
[1756992079286,1.94138215,110810.0,110800.0,0.002]
[1756992079486,1.10966215,110810.0,110800.0,0.002]
[1756992079688,1.94138215,110810.0,110800.0,0.002]
[1756992079887,1.94138215,110810.0,110800.0,0.06879]
[1756992081089,0.75666018,110810.0,110800.0,0.10931]
[1756992081393,0.73573,110810.0,110800.0,0.69188197]
[1756992081593,0.42573,110810.0,110800.0,0.69188197]
[1756992081784,0.64573,110810.0,110800.0,0.69188197]
[1756992082090,0.64573,110810.0,110800.0,0.35931]
[1756992082392,0.64573,110810.0,110800.0,0.69188197]
[1756992082892,0.61573,110810.0,110800.0,0.69188197]
[1756992085781,0.61573,110810.0,110800.0,0.35931]
[1756992085994,0.61573,110810.0,110800.0,0.69188197]
[1756992087498,0.63684384,110810.0,110800.0,0.69188197]
[1756992088996,0.65684384,110810.0,110800.0,0.69188197]
[1756992092402,0.65684384,110810.0,110800.0,0.35931]
[1756992093302,0.65684384,110810.0,110800.0,0.69188197]
[1756992093896,0.65684384,110810.0,110800.0,0.35931]
[1756992094098,0.65684384,110810.0,110800.0,0.69188197]
[1756992094898,0.65684384,110810.0,110800.0,0.35931]
[1756992097400,1.23941581,110810.0,110800.0,0.06879]
[1756992097600,1.00689581,110810.0,110800.0,0.002]
[1756992097806,1.00689581,110810.0,110800.0,0.06879]
[1756992099202,1.00689581,110810.0,110800.0,0.002]
[1756992099407,1.00689581,110810.0,110800.0,0.06843]
[1756992102809,1.00689581,110810.0,110800.0,0.002]
[1756992104009,1.84157581,110810.0,110800.0,0.002]
[1756992104209,2.09157581,110810.0,110800.0,0.002]
[1756992104709,1.25689581,110810.0,110800.0,0.002]
[1756992104912,2.07409581,110810.0,110800.0,0.10647]
[1756992105710,1.23941581,110810.0,110800.0,0.10647]
[1756992105898,2.07401581,110810.0,110800.0,0.10647]
[1756992106098,1.23941581,110810.0,110800.0,0.10647]
[1756992106304,0.65684384,110810.0,110800.0,0.43904197]
[1756992106608,1.49144384,110810.0,110800.0,0.43904197]
[1756992107112,0.65684384,110810.0,110800.0,0.43904197]
[1756992107498,1.49152384,110810.0,110800.0,0.43904197]
[1756992107907,2.09370581,110810.0,110800.0,0.002]
[1756992108308,0.08181,110800.0,110790.0,0.0001]
[1756992108505,1.10518197,110800.0,110780.0,0.27363981]
[1756992108703,1.25682,110790.0,110780.0,0.42006981]
[1756992108912,1.54682,110790.0,110780.0,0.25776676]
[1756992109711,1.54682,110790.0,110780.0,0.25976676]
[1756992110105,1.54658,110790.0,110780.0,0.25976676]
[1756992110913,1.54458,110790.0,110780.0,0.25976676]
[1756992111810,1.54458,110790.0,110780.0,0.26176676]
[1756992112203,1.54458,110790.0,110780.0,0.25976676]
[1756992112405,1.54458,110790.0,110780.0,0.26176676]
[1756992113508,0.71018,110790.0,110780.0,0.26176676]
[1756992113714,1.5447,110790.0,110780.0,0.26176676]
[1756992116610,1.87727197,110790.0,110780.0,0.26176676]
[1756992117703,1.04275197,110790.0,110780.0,0.26176676]
[1756992117907,1.5439,110790.0,110780.0,0.26176676]
[1756992118403,1.56525963,110790.0,110780.0,0.26176676]
[1756992118608,0.31135963,110790.0,110780.0,0.84433873]
[1756992118804,0.31135963,110790.0,110780.0,1.20513873]
[1756992119003,0.37273963,110790.0,110780.0,0.62256676]
[1756992119208,0.73353963,110790.0,110780.0,0.26627676]
[1756992125514,1.56769963,110790.0,110780.0,0.26627676]
[1756992128724,1.9002716,110790.0,110780.0,0.26627676]
[1756992128924,1.9166316,110790.0,110780.0,0.22621676]
[1756992129624,1.58405963,110790.0,110780.0,0.22621676]
[1756992129825,1.9166316,110790.0,110780.0,0.22621676]
[1756992130124,1.9166316,110790.0,110780.0,0.15978676]
[1756992130426,1.9166316,110790.0,110780.0,0.07978676]
[1756992131016,2.1666316,110790.0,110780.0,0.07978676]
[1756992131212,2.49920357,110790.0,110780.0,0.00851]
[1756992134120,2.49972357,110790.0,110780.0,0.00851]
[1756992136221,2.49972357,110790.0,110780.0,0.00351]
[1756992136927,2.49988357,110790.0,110780.0,0.00351]
[1756992137523,2.50027637,110790.0,110780.0,0.00351]
[1756992138515,1.66543637,110790.0,110780.0,0.00351]
[1756992138717,2.50015637,110790.0,110780.0,0.00351]
[1756992139330,1.66543637,110790.0,110780.0,0.00351]
[1756992139528,2.50007637,110790.0,110780.0,0.00351]
[1756992140930,2.13927637,110790.0,110780.0,0.00351]
[1756992141132,2.86087637,110790.0,110780.0,0.00351]
[1756992141433,0.07241,110780.0,110770.0,0.0001]
[1756992141632,1.38874674,110780.0,110760.0,0.03814]
[1756992141938,1.58952837,110770.0,110760.0,0.10209]
[1756992142134,1.91952837,110770.0,110760.0,0.10199]
[1756992142931,1.91352837,110770.0,110760.0,0.10199]
[1756992143629,1.91352837,110770.0,110760.0,0.10599]
[1756992143834,1.91352837,110770.0,110760.0,0.10899]
[1756992144230,1.91352837,110770.0,110760.0,0.18008458]
[1756992144634,1.95111752,110770.0,110760.0,0.18008458]
[1756992144932,2.32499114,110770.0,110760.0,0.07809458]
[1756992145234,1.99222277,110770.0,110760.0,0.07809458]
[1756992145637,1.15810277,110770.0,110760.0,0.07809458]
[1756992145938,1.99214277,110770.0,110760.0,0.07809458]
[1756992146439,1.99214277,110770.0,110760.0,0.07109458]
[1756992146739,1.99214277,110770.0,110760.0,0.001]
[1756992147124,2.32491114,110770.0,110760.0,0.001]
[1756992147634,2.95767951,110770.0,110760.0,0.001]
[1756992147824,2.45363951,110770.0,110750.0,0.00364]
[1756992148031,1.02633674,110760.0,110750.0,0.00364]
[1756992148233,2.51198674,110760.0,110750.0,0.00354]
[1756992148731,0.76225,110760.0,110750.0,0.00354]
[1756992148933,2.26194674,110760.0,110750.0,0.00354]
[1756992149135,1.42778674,110760.0,110750.0,0.00354]
[1756992149532,2.26182674,110760.0,110750.0,0.00354]
[1756992149726,1.42778674,110760.0,110750.0,0.00354]
[1756992149929,2.26182674,110760.0,110750.0,0.00354]
[1756992150129,2.26182674,110760.0,110750.0,0.00454]
[1756992150539,1.42778674,110760.0,110750.0,0.00454]
[1756992150835,1.42778674,110760.0,110750.0,0.00354]
[1756992150836,2.26174674,110760.0,110750.0,0.00354]
[1756992151036,2.26178674,110760.0,110750.0,0.00354]
[1756992151227,1.42778674,110760.0,110750.0,0.00354]
[1756992151429,2.26178674,110760.0,110750.0,0.00354]
[1756992152232,2.26182674,110760.0,110750.0,0.00354]
[1756992155943,1.59629,110760.0,110750.0,0.00354]
[1756992156139,2.26182674,110760.0,110750.0,0.00354]
[1756992160548,2.26182674,110760.0,110740.0,0.0369]
[1756992160749,0.75623837,110750.0,110740.0,0.10085]